fUST/lending_fUST_20250708
["ID","MTS","AMOUNT","RATE_DAILY","PERIOD"]
[370380119,1751987459564,-465.23155881,0.00020547,2]
[370380120,1751987459574,-1227.68,0.00020547,2]
[370380121,1751987459583,-802.39,0.00020547,2]
[370380122,1751987459592,-460.0,0.00020547,2]
[370380123,1751987459603,-460.0,0.00020547,2]
[370380124,1751987459612,-2315.09,0.00020547,2]
[370380125,1751987459622,-460.0,0.00020547,2]
[370380126,1751987459631,-779.96,0.00020547,2]
[370380127,1751987459641,-460.0,0.00020547,2]
[370380128,1751987459650,-768.26,0.00020547,2]
[370380129,1751987459660,-460.0,0.00020547,2]
[370380130,1751987459669,-1247.08,0.00020547,2]
[370380131,1751987459678,-814.03,0.00020547,2]
[370380132,1751987459688,-460.0,0.00020547,2]
[370380133,1751987459698,-1458.11,0.00020547,2]
[370380134,1751987459707,-1873.14,0.00020547,2]
[370380135,1751987459717,-596.35705903,0.00020547,2]
[370380136,1751987459726,-503.68,0.00020547,2]
[370380137,1751987459735,-460.0,0.00020547,2]
[370380138,1751987459744,-460.0,0.00020547,2]
[370380139,1751987459754,-460.0,0.00020547,2]
[370380140,1751987459763,-510.97,0.00020547,2]
[370380141,1751987459772,-1198.65,0.00020547,2]
[370380142,1751987459782,-460.0,0.00020547,2]
[370380143,1751987459791,-460.0,0.00020547,2]
[370380144,1751987459801,-169.1087624,0.00020547,2]
[370380145,1751987459810,-485.36,0.00020547,2]
[370380146,1751987459819,-3642.47,0.00020547,2]
[370380147,1751987459828,-460.0,0.00020547,2]
[370380148,1751987459838,-3488.24,0.00020547,2]
[370380149,1751987459847,-460.0,0.00020547,2]
[370380150,1751987459857,-881.6,0.00020547,2]
[370380151,1751987459867,-460.0,0.00020547,2]
[370380152,1751987459876,-1190.04,0.00020547,2]
[370380153,1751987459885,-5308.08,0.00020547,2]
[370380154,1751987459895,-858.29,0.00020547,2]
[370380155,1751987459905,-460.0,0.00020547,2]
[370380156,1751987459914,-460.0,0.00020547,2]
[370380157,1751987459923,-460.0,0.00020547,2]
[370380158,1751987459932,-693.69,0.00020547,2]
[370380159,1751987459941,-889.03,0.00020547,2]
[370380160,1751987459951,-911.11,0.00020547,2]
[370380161,1751987459960,-470.51073333,0.00020547,2]
[370380162,1751987459969,-460.51093071,0.00020547,2]
[370380163,1751987459979,-460.0,0.00020547,2]
[370380164,1751987459988,-849.52,0.00020547,2]
[370380165,1751987459997,-1608.55,0.00020547,2]
[370380166,1751987460006,-512.35,0.00020547,2]
[370380167,1751987460015,-1680.8,0.00020547,2]
[370380168,1751987460025,-3263.91,0.00020547,2]
[370380169,1751987460034,-460.0,0.00020547,2]
[370380170,1751987460044,-460.0,0.00020547,2]
[370380171,1751987460053,-825.63,0.00020547,2]
[370380172,1751987460063,-1917.38,0.00020547,2]
[370380173,1751987460073,-1349.37,0.00020547,2]
[370380174,1751987460083,-7169.81,0.00020547,2]
[370380175,1751987460092,-764.25,0.00020547,2]
[370380176,1751987460102,-460.0,0.00020547,2]
[370380177,1751987460111,-3212.24,0.00020547,2]
[370380178,1751987460120,-975.12,0.00020547,2]
[370380179,1751987460129,-460.0,0.00020547,2]
[370380180,1751987460138,-3732.02,0.00020547,2]
[370380181,1751987460147,-460.0,0.00020547,2]
[370380182,1751987460156,-517.2,0.00020547,2]
[370380183,1751987460166,-1124.04,0.00020547,2]
[370380184,1751987460177,-1500.0,0.00020568,2]
[370380185,1751987460188,-1500.0,0.00020568,2]
[370380186,1751987460197,-1800.0,0.00020568,2]
[370380187,1751987460207,-420.0,0.00020569,2]
[370380188,1751987460216,-151.0,0.00020579,4]
[370380189,1751987460226,-1319.22748375,0.00020622,2]
[370380190,1751987460235,-500.0,0.00020629,2]
[370380191,1751987460244,-170.8,0.00020698,2]
[370380192,1751987460256,-500.0,0.00020724,2]
[370380193,1751987460266,-3853.49006069,0.00020728,3]
[370380194,1751987460275,-2200.0,0.00020773,2]
[370380195,1751987460285,-151.0,0.00020816,2]
[370380196,1751987460295,-151.0,0.00020816,2]
[370380197,1751987460304,-151.0,0.00020816,2]
[370380198,1751987460313,-151.0,0.00020816,2]
[370380199,1751987460322,-151.0,0.00020816,2]
[370380200,1751987460331,-204.294437,0.00020816,2]
[370380201,1751987460341,-204.294437,0.00020816,2]
[370380202,1751987460350,-500.0,0.00020819,2]
[370380203,1751987460361,-151.0,0.00020821,2]
[370380204,1751987460370,-460.0,0.00020821,2]
[370380205,1751987460379,-310.71229955,0.00020821,2]
[370380206,1751987460389,-151.0,0.00020821,2]
[370380207,1751987460398,-151.0,0.00020821,2]
[370380208,1751987460407,-151.0,0.00020821,2]
[370380209,1751987460416,-520.37,0.00020821,2]
[370380210,1751987460426,-644.05,0.00020821,2]
[370380211,1751987460435,-151.0,0.00020821,2]
[370380212,1751987460444,-151.0,0.00020821,2]
[370380213,1751987460456,-460.0,0.00020821,2]
[370380214,1751987460472,-460.0,0.00020821,2]
[370380215,1751987460489,-151.0,0.00020821,2]
[370380216,1751987460501,-460.0,0.00020821,2]
[370380217,1751987460516,-460.0,0.00020821,2]
[370380218,1751987460531,-151.0,0.00020821,2]
[370380219,1751987460546,-151.0,0.00020821,2]
[370380220,1751987460560,-151.0,0.00020821,2]
[370380221,1751987460576,-157.67525,0.00020821,2]
[370380222,1751987460592,-157.67525,0.00020821,2]
[370380223,1751987460606,-460.0,0.00020821,2]
[370380224,1751987460619,-590.3,0.00020821,2]
[370380225,1751987460633,-460.0,0.00020821,2]
[370380226,1751987460648,-460.0,0.00020821,2]
[370380227,1751987460661,-460.0,0.00020821,2]
[370380228,1751987460672,-460.0,0.00020821,2]
[370380229,1751987460686,-460.0,0.00020821,2]
[370380230,1751987460700,-460.0,0.00020821,2]
[370380231,1751987460715,-460.0,0.00020821,2]
[370380232,1751987460729,-460.0,0.00020821,2]
[370380233,1751987460744,-460.0,0.00020821,2]
[370380234,1751987460760,-571.79,0.00020821,2]
[370380235,1751987460772,-366.48812711,0.00020821,2]
[370380236,1751987460783,-655.17,0.00020821,2]
[370380237,1751987460795,-370.0,0.00020821,2]
[370380238,1751987460811,-460.0,0.00020821,2]
[370380239,1751987460825,-460.0,0.00020821,2]
[370380240,1751987460837,-460.0,0.00020821,2]
[370380241,1751987460849,-460.0,0.00020821,2]
[370380242,1751987460866,-460.0,0.00020821,2]
[370380243,1751987460878,-460.0,0.00020821,2]
[370380244,1751987460889,-270.13,0.00020821,2]
[370380245,1751987460902,-1068.61,0.00020821,2]
[370380246,1751987460915,-460.0,0.00020821,2]
[370380247,1751987460927,-990.47,0.00020821,2]
[370380248,1751987460940,-151.613201,0.00020821,2]
[370380249,1751987460952,-212.85,0.00020821,2]
[370380250,1751987460965,-460.0,0.00020821,2]
[370380251,1751987460978,-460.0,0.00020821,2]
[370380252,1751987460990,-529.08,0.00020821,2]
[370380253,1751987461002,-460.0,0.00020821,2]
[370380254,1751987461015,-460.0,0.00020821,2]
[370380255,1751987461027,-1094.43,0.00020821,2]
[370380256,1751987461039,-460.0,0.00020821,2]
[370380257,1751987461052,-610.0,0.00020821,2]
[370380258,1751987461065,-460.0,0.00020821,2]
[370380259,1751987461077,-460.0,0.00020821,2]
[370380260,1751987461089,-702.73,0.00020821,2]
[370380261,1751987461102,-460.0,0.00020821,2]
[370380262,1751987461119,-460.0,0.00020821,2]
[370380263,1751987461132,-460.0,0.00020821,2]
[370380264,1751987461144,-460.0,0.00020821,2]
[370380265,1751987461156,-2535.92,0.00020821,2]
[370380266,1751987461169,-1117.62,0.00020821,2]
[370380267,1751987461185,-460.0,0.00020821,2]
[370380268,1751987461197,-460.0,0.00020821,2]
[370380269,1751987461210,-489.06,0.00020821,2]
[370380270,1751987461223,-460.0,0.00020821,2]
[370380271,1751987461235,-638.54,0.00020821,2]
[370380272,1751987461246,-460.0,0.00020821,2]
[370380273,1751987461260,-460.0,0.00020821,2]
[370380274,1751987461272,-906.56,0.00020821,2]
[370380275,1751987461285,-6605.47,0.00020821,2]
[370380276,1751987461297,-217.182618,0.00020821,2]
[370380277,1751987461309,-1836.51,0.00020821,2]
[370380278,1751987461321,-217.182618,0.00020821,2]
[370380279,1751987461334,-3531.13,0.00020821,2]
[370380280,1751987461345,-209.00520413,0.00020821,2]
[370380281,1751987461359,-769.53,0.00020821,2]
[370380282,1751987461372,-460.0,0.00020821,2]
[370380283,1751987461384,-4999.22,0.00020821,2]
[370380284,1751987461397,-460.0,0.00020821,2]
[370380285,1751987461409,-1438.66,0.00020821,2]
[370380286,1751987461421,-1029.02,0.00020821,2]
[370380287,1751987461434,-551.13,0.00020821,2]
[370380288,1751987461447,-3199.43,0.00020821,2]
[370380289,1751987461459,-1136.93,0.00020821,2]
[370380290,1751987461472,-1227.68,0.00020821,2]
[370380291,1751987461484,-802.39,0.00020821,2]
[370380292,1751987461498,-460.0,0.00020821,2]
[370380293,1751987461510,-460.0,0.00020821,2]
[370380294,1751987461522,-2315.09,0.00020821,2]
[370380295,1751987461534,-177.33188791,0.00020821,2]
[370380296,1751987461547,-779.96,0.00020821,2]
[370380297,1751987461559,-460.0,0.00020821,2]
[370380298,1751987461571,-768.26,0.00020821,2]
[370380299,1751987461583,-460.0,0.00020821,2]
[370380300,1751987461596,-1247.08,0.00020821,2]
[370380301,1751987461608,-814.03,0.00020821,2]
[370380302,1751987461621,-460.0,0.00020821,2]
[370380303,1751987461634,-1458.11,0.00020821,2]
[370380304,1751987461647,-1873.14,0.00020821,2]
[370380305,1751987461659,-460.0,0.00020821,2]
[370380306,1751987461673,-503.68,0.00020821,2]
[370380307,1751987461685,-460.0,0.00020821,2]
[370380308,1751987461698,-460.0,0.00020821,2]
[370380309,1751987461711,-510.97,0.00020821,2]
[370380310,1751987461724,-1198.65,0.00020821,2]
[370380311,1751987461738,-460.0,0.00020821,2]
[370380312,1751987461751,-460.0,0.00020821,2]
[370380313,1751987461764,-485.36,0.00020821,2]
[370380314,1751987461776,-3642.47,0.00020821,2]
[370380315,1751987461795,-460.0,0.00020821,2]
[370380316,1751987461807,-3488.24,0.00020821,2]
[370380317,1751987461819,-460.0,0.00020821,2]
[370380318,1751987461832,-881.6,0.00020821,2]
[370380319,1751987461844,-151.0,0.00020821,2]
[370380320,1751987461857,-460.0,0.00020821,2]
[370380321,1751987461870,-1190.04,0.00020821,2]
[370380322,1751987461880,-5308.08,0.00020821,2]
[370380323,1751987461890,-858.29,0.00020821,2]
[370380324,1751987461900,-509.75282343,0.00020821,2]
[370380325,1751987461909,-460.0,0.00020821,2]
[370380326,1751987461922,-460.0,0.00020821,2]
[370380327,1751987461932,-693.69,0.00020821,2]
[370380328,1751987462166,-889.03,0.00020821,2]
[370380329,1751987462187,-911.11,0.00020821,2]
[370380330,1751987462200,-460.0,0.00020821,2]
[370380331,1751987462210,-849.52,0.00020821,2]
[370380332,1751987462220,-1608.55,0.00020821,2]
[370380333,1751987462229,-512.35,0.00020821,2]
[370380334,1751987462239,-1680.8,0.00020821,2]
[370380335,1751987462248,-3263.91,0.00020821,2]
[370380336,1751987462258,-151.0,0.00020821,2]
[370380337,1751987462268,-460.0,0.00020821,2]
[370380338,1751987462278,-825.63,0.00020821,2]
[370380339,1751987462287,-460.0,0.00020821,2]
[370380340,1751987462299,-1917.38,0.00020821,2]
[370380341,1751987462308,-207.72812,0.00020821,2]
[370380342,1751987462317,-207.72812,0.00020821,2]
[370380343,1751987462326,-1349.37,0.00020821,2]
[370380344,1751987462335,-7169.81,0.00020821,2]
[370380345,1751987462344,-764.25,0.00020821,2]
[370380346,1751987462353,-460.0,0.00020821,2]
[370380347,1751987462364,-3212.24,0.00020821,2]
[370380348,1751987462373,-975.12,0.00020821,2]
[370380349,1751987462382,-460.0,0.00020821,2]
[370380350,1751987462391,-204.743575,0.00020821,2]
[370380351,1751987462400,-3732.02,0.00020821,2]
[370380352,1751987462410,-460.0,0.00020821,2]
[370380353,1751987462419,-517.2,0.00020821,2]
[370380354,1751987462429,-1124.04,0.00020821,2]
[370380355,1751987462438,-151.0,0.00020849,4]
[370380356,1751987462447,-188.85272705,0.00020868,2]
[370380357,1751987462457,-153.0,0.00020877,2]
[370380358,1751987462466,-215.0738,0.00020882,2]
[370380359,1751987462476,-873.0,0.00020903,2]
[370380360,1751987462486,-500.0,0.00020903,2]
[370380361,1751987462495,-151.0550023,0.00020903,2]
[370380362,1751987462505,-151.03776761,0.00020903,2]
[370380363,1751987462514,-151.00208844,0.00020903,2]
[370380364,1751987462524,-151.0,0.00020903,2]
[370380365,1751987462534,-151.0,0.00020903,2]
[370380366,1751987462543,-151.0,0.00020903,2]
[370380367,1751987462553,-500.0,0.00020903,2]
[370380368,1751987462562,-151.0,0.00020903,2]
[370380369,1751987462573,-151.0,0.00020903,2]
[370380370,1751987462582,-500.0,0.00020903,2]
[370380371,1751987462592,-500.0,0.00020914,2]
[370380372,1751987462602,-873.0,0.0002093,2]
[370380373,1751987462613,-500.0,0.0002093,2]
[370380374,1751987462623,-200.21232972,0.0002093,2]
[370380375,1751987462632,-151.0,0.0002093,2]
[370380376,1751987462641,-151.0,0.0002093,2]
[370380377,1751987462651,-500.0,0.0002093,2]
[370380378,1751987462660,-500.0,0.0002093,2]
[370380379,1751987462670,-3853.49006069,0.00020934,4]
[370380380,1751987462679,-873.0,0.00020958,2]
[370380381,1751987462688,-426.0,0.00020958,2]
[370380382,1751987462698,-201.14469127,0.00020958,2]
[370380383,1751987462707,-151.0,0.00020958,2]
[370380384,1751987462716,-453.0,0.00020958,2]
[370380385,1751987462725,-873.0,0.00020985,2]
[370380386,1751987462735,-887.5540149,0.00020995,2]
[370380387,1751987462744,-128577.26814925,0.00021,2]
[370380388,1751987462753,-151.0,0.00021,2]
[370380389,1751987462763,-179.745313,0.00021,2]
[370380390,1751987462773,-1000.0,0.00021,2]
[370380391,1751987462782,-1000.0,0.00021,2]
[370380392,1751987462792,-1220.0,0.00021,2]
[370380393,1751987462801,-920.0,0.00021,2]
[370380394,1751987462810,-500.0,0.00021009,2]
[370380395,1751987462819,-873.0,0.00021013,2]
[370380396,1751987462829,-873.0,0.0002104,2]
[370380397,1751987462838,-873.0,0.00021067,2]
[370380398,1751987462847,-151.0,0.00021072,2]
[370380399,1751987462856,-151.0,0.00021072,2]
[370380400,1751987462866,-154.041585,0.00021072,2]
[370380401,1751987462875,-10838.73568553,0.00021088,2]
[370380402,1751987462885,-873.0,0.00021095,2]
[370380403,1751987462894,-151.0,0.00021095,2]
[370380404,1751987462903,-151.0,0.00021095,2]
[370380405,1751987462912,-500.0,0.00021095,15]
[370380406,1751987462922,-460.0,0.00021095,2]
[370380407,1751987462931,-155.67567,0.00021095,2]
[370380408,1751987462940,-151.0,0.00021095,2]
[370380409,1751987462950,-151.0,0.00021095,2]
[370380410,1751987462959,-405.481259,0.00021095,2]
[370380411,1751987462968,-405.481259,0.00021095,2]
[370380412,1751987462978,-151.0,0.00021095,2]
[370380413,1751987462987,-151.0,0.00021095,2]
[370380414,1751987462996,-151.0,0.00021095,2]
[370380415,1751987463005,-520.37,0.00021095,2]
[370380416,1751987463015,-151.0,0.00021095,2]
[370380417,1751987463025,-151.0,0.00021095,2]
[370380418,1751987463034,-644.05,0.00021095,2]
[370380419,1751987463044,-460.0,0.00021095,2]
[370380420,1751987463053,-460.0,0.00021095,2]
[370380421,1751987463062,-151.0,0.00021095,2]
[370380422,1751987463071,-151.0,0.00021095,2]
[370380423,1751987463081,-319.52,0.00021095,2]
[370380424,1751987463090,-460.0,0.00021095,2]
[370380425,1751987463100,-151.0,0.00021095,2]
[370380426,1751987463110,-157.67525,0.00021095,2]
[370380427,1751987463119,-151.0,0.00021095,2]
[370380428,1751987463129,-157.67525,0.00021095,2]
[370380429,1751987463138,-460.0,0.00021095,2]
[370380430,1751987463148,-590.3,0.00021095,2]
[370380431,1751987463157,-460.0,0.00021095,2]
[370380432,1751987463166,-151.0,0.00021095,2]
[370380433,1751987463177,-513.10793708,0.00021095,2]
[370380434,1751987463189,-460.0,0.00021095,2]
[370380435,1751987463198,-536.12,0.00021095,2]
[370380436,1751987463208,-460.0,0.00021095,2]
[370380437,1751987463219,-460.0,0.00021095,2]
[370380438,1751987463228,-460.0,0.00021095,2]
[370380439,1751987463237,-571.79,0.00021095,2]
[370380440,1751987463247,-655.17,0.00021095,2]
[370380441,1751987463258,-460.0,0.00021095,2]
[370380442,1751987463267,-151.0,0.00021095,2]
[370380443,1751987463277,-460.0,0.00021095,2]
[370380444,1751987463286,-460.0,0.00021095,2]
[370380445,1751987463295,-465.54,0.00021095,2]
[370380446,1751987463304,-151.0,0.00021095,2]
[370380447,1751987463314,-151.0,0.00021095,2]
[370380448,1751987463323,-1068.61,0.00021095,2]
[370380449,1751987463332,-460.0,0.00021095,2]
[370380450,1751987463342,-990.47,0.00021095,2]
[370380451,1751987463351,-460.0,0.00021095,2]
[370380452,1751987463361,-529.08,0.00021095,2]
[370380453,1751987463370,-460.0,0.00021095,2]
[370380454,1751987463379,-473.93923475,0.00021095,2]
[370380455,1751987463388,-460.0,0.00021095,2]
[370380456,1751987463399,-1094.43,0.00021095,2]
[370380457,1751987463408,-460.0,0.00021095,2]
[370380458,1751987463417,-152.714907,0.00021095,2]
[370380459,1751987463427,-610.0,0.00021095,2]
[370380460,1751987463436,-460.0,0.00021095,2]
[370380461,1751987463445,-460.0,0.00021095,2]
[370380462,1751987463455,-702.73,0.00021095,2]
[370380463,1751987463464,-460.0,0.00021095,2]
[370380464,1751987463473,-460.0,0.00021095,2]
[370380465,1751987463483,-460.0,0.00021095,2]
[370380466,1751987463492,-460.0,0.00021095,2]
[370380467,1751987463501,-2535.92,0.00021095,2]
[370380468,1751987463511,-1117.62,0.00021095,2]
[370380469,1751987463520,-151.0,0.00021095,2]
[370380470,1751987463530,-460.0,0.00021095,2]
[370380471,1751987463539,-460.0,0.00021095,2]
[370380472,1751987463549,-204.294437,0.00021095,2]
[370380473,1751987463559,-489.06,0.00021095,2]
[370380474,1751987463568,-638.54,0.00021095,2]
[370380475,1751987463578,-204.294437,0.00021095,2]
[370380476,1751987463587,-460.0,0.00021095,2]
[370380477,1751987463596,-460.0,0.00021095,2]
[370380478,1751987463605,-906.56,0.00021095,2]
[370380479,1751987463616,-6605.47,0.00021095,2]
[370380480,1751987463625,-1836.51,0.00021095,2]
[370380481,1751987463634,-217.182618,0.00021095,2]
[370380482,1751987463643,-217.182618,0.00021095,2]
[370380483,1751987463652,-3531.13,0.00021095,2]
[370380484,1751987463662,-769.53,0.00021095,2]
[370380485,1751987463671,-4999.22,0.00021095,2]
[370380486,1751987463680,-460.0,0.00021095,2]
[370380487,1751987463690,-1438.66,0.00021095,2]
[370380488,1751987463700,-1029.02,0.00021095,2]
[370380489,1751987463709,-551.13,0.00021095,2]
[370380490,1751987463719,-3199.43,0.00021095,2]
[370380491,1751987463729,-1136.93,0.00021095,2]
[370380492,1751987463739,-1227.68,0.00021095,2]
[370380493,1751987463748,-802.39,0.00021095,2]
[370380494,1751987463758,-460.0,0.00021095,2]
[370380495,1751987463768,-460.0,0.00021095,2]
[370380496,1751987463778,-2315.09,0.00021095,2]
[370380497,1751987463788,-779.96,0.00021095,2]
[370380498,1751987463797,-460.0,0.00021095,2]
[370380499,1751987463807,-768.26,0.00021095,2]
[370380500,1751987463817,-460.0,0.00021095,2]
[370380501,1751987463827,-1247.08,0.00021095,2]
[370380502,1751987463836,-814.03,0.00021095,2]
[370380503,1751987463847,-460.0,0.00021095,2]
[370380504,1751987463856,-1458.11,0.00021095,2]
[370380505,1751987463867,-1873.14,0.00021095,2]
[370380506,1751987463877,-460.0,0.00021095,2]
[370380507,1751987463887,-503.68,0.00021095,2]
[370380508,1751987463897,-460.0,0.00021095,2]
[370380509,1751987463907,-460.0,0.00021095,2]
[370380510,1751987463916,-510.97,0.00021095,2]
[370380511,1751987463926,-1198.65,0.00021095,2]
[370380512,1751987463935,-460.0,0.00021095,2]
[370380513,1751987463945,-485.36,0.00021095,2]
[370380514,1751987463955,-3642.47,0.00021095,2]
[370380515,1751987463964,-460.0,0.00021095,2]
[370380516,1751987463974,-3488.24,0.00021095,2]
[370380517,1751987463983,-460.0,0.00021095,2]
[370380518,1751987463993,-881.6,0.00021095,2]
[370380519,1751987464003,-231.879186,0.00021095,2]
[370380520,1751987464012,-460.0,0.00021095,2]
[370380521,1751987464023,-1190.04,0.00021095,2]
[370380522,1751987464032,-5308.08,0.00021095,2]
[370380523,1751987464042,-858.29,0.00021095,2]
[370380524,1751987464052,-460.0,0.00021095,2]
[370380525,1751987464061,-460.0,0.00021095,2]
[370380526,1751987464071,-693.69,0.00021095,2]
[370380527,1751987464081,-889.03,0.00021095,2]
[370380528,1751987464091,-911.11,0.00021095,2]
[370380529,1751987464100,-460.0,0.00021095,2]
[370380530,1751987464110,-849.52,0.00021095,2]
[370380531,1751987464119,-1608.55,0.00021095,2]
[370380532,1751987464128,-512.35,0.00021095,2]
[370380533,1751987464138,-1680.8,0.00021095,2]
[370380534,1751987464147,-3263.91,0.00021095,2]
[370380535,1751987464157,-213.371398,0.00021095,2]
[370380536,1751987464167,-825.63,0.00021095,2]
[370380537,1751987464178,-460.0,0.00021095,2]
[370380538,1751987464188,-523.17,0.00021095,2]
[370380539,1751987464198,-1917.38,0.00021095,2]
[370380540,1751987464208,-207.72812,0.00021095,2]
[370380541,1751987464217,-207.72812,0.00021095,2]
[370380542,1751987464228,-1349.37,0.00021095,2]
[370380543,1751987464237,-7169.81,0.00021095,2]
[370380544,1751987464247,-764.25,0.00021095,2]
[370380545,1751987464258,-460.0,0.00021095,2]
[370380546,1751987464268,-3212.24,0.00021095,2]
[370380547,1751987464277,-975.12,0.00021095,2]
[370380548,1751987464286,-3732.02,0.00021095,2]
[370380549,1751987464295,-460.0,0.00021095,2]
[370380550,1751987464305,-517.2,0.00021095,2]
[370380551,1751987464315,-1124.04,0.00021095,2]
[370380552,1751987464324,-1050.0,0.000211,4]
[370380553,1751987464334,-500.0,0.00021104,2]
[370380554,1751987464343,-2000.0,0.00021116,2]
[370380555,1751987464352,-2000.0,0.00021116,2]
[370380556,1751987464362,-2400.0,0.00021116,2]
[370380557,1751987464371,-151.0,0.0002112,4]
[370380558,1751987464380,-873.0,0.00021122,2]
[370380559,1751987464390,-3853.49006069,0.00021141,4]
[370380560,1751987464401,-873.0,0.0002115,2]
[370380561,1751987464412,-873.0,0.00021177,2]
[370380562,1751987464421,-500.0,0.00021199,2]
[370380563,1751987464430,-873.0,0.00021204,2]
[370380564,1751987464440,-151.0,0.00021216,2]
[370380565,1751987464449,-151.0,0.00021216,2]
[370380566,1751987464459,-151.0,0.00021216,2]
[370380567,1751987464468,-151.0,0.00021216,2]
[370380568,1751987464477,-873.0,0.00021232,2]
[370380569,1751987464487,-151.0,0.00021259,2]
[370380570,1751987464496,-151.0,0.00021259,2]
[370380571,1751987464506,-873.0,0.00021259,2]
[370380572,1751987464515,-873.0,0.00021287,2]
[370380573,1751987464524,-500.0,0.00021294,2]
[370380574,1751987464533,-873.0,0.00021314,2]
[370380575,1751987464543,-873.0,0.00021341,2]
[370380576,1751987464552,-548.53027124,0.00021342,2]
[370380577,1751987464561,-3853.49006069,0.00021348,5]
[370380578,1751987464571,-873.0,0.00021369,2]
[370380579,1751987464580,-151.0,0.00021369,2]
[370380580,1751987464591,-151.0,0.00021369,2]
[370380581,1751987464600,-151.0,0.00021369,2]
[370380582,1751987464609,-151.0,0.00021369,2]
[370380583,1751987464619,-411.498511,0.00021369,2]
[370380584,1751987464628,-217.819591,0.00021369,2]
[370380585,1751987464638,-411.498511,0.00021369,2]
[370380586,1751987464647,-217.819591,0.00021369,2]
[370380587,1751987464656,-151.0,0.00021369,2]
[370380588,1751987464665,-156.409,0.00021369,2]
[370380589,1751987464675,-156.409,0.00021369,2]
[370380590,1751987464684,-460.0,0.00021369,2]
[370380591,1751987464693,-151.0,0.00021369,2]
[370380592,1751987464702,-292.692506,0.00021369,2]
[370380593,1751987464712,-292.692506,0.00021369,2]
[370380594,1751987464722,-151.0,0.00021369,2]
[370380595,1751987464731,-520.37,0.00021369,2]
[370380596,1751987464741,-644.05,0.00021369,2]
[370380597,1751987464751,-151.0,0.00021369,2]
[370380598,1751987464760,-460.0,0.00021369,2]
[370380599,1751987464769,-460.0,0.00021369,2]
[370380600,1751987464780,-460.0,0.00021369,2]
[370380601,1751987464789,-460.0,0.00021369,2]
[370380602,1751987464800,-590.3,0.00021369,2]
[370380603,1751987464809,-460.0,0.00021369,2]
[370380604,1751987464819,-460.0,0.00021369,2]
[370380605,1751987464829,-460.0,0.00021369,2]
[370380606,1751987464838,-317.71171329,0.00021369,2]
[370380607,1751987464848,-460.0,0.00021369,2]
[370380608,1751987464857,-571.79,0.00021369,2]
[370380609,1751987464867,-655.17,0.00021369,2]
[370380610,1751987464876,-460.0,0.00021369,2]
[370380611,1751987464885,-440.4016656,0.00021369,2]
[370380612,1751987464895,-460.0,0.00021369,2]
[370380613,1751987464904,-1068.61,0.00021369,2]
[370380614,1751987464914,-460.0,0.00021369,2]
[370380615,1751987464923,-990.47,0.00021369,2]
[370380616,1751987464932,-460.0,0.00021369,2]
[370380617,1751987464942,-529.08,0.00021369,2]
[370380618,1751987464952,-460.0,0.00021369,2]